Cogmind - Beta 14 @@@ ROGUE MODE // 2024.08.26 @ 20:20:35 Player: Morphaana Result: Self-destructed Performance ------------- Evolutions (1) 500 Regions Visited (3) 600 Robots Destroyed (24) 120 Value Destroyed (486) 486 Prototype IDs (0) 0 Alien Tech Used (0) 0 Bonus (0) 0 TOTAL SCORE: 1706 Bonus ------- None Cogmind --------- Core Integrity 308/400 Matter 274/300 Energy 265/265 System Corruption 0% Temperature Cool (1) Movement Treading (240) Ox1 Location -9/Materials Parts ------- > --- POWER (1) -------- Improved Ion Engine > --- PROPULSION (3) --- Light Treads > --- UTILITY (3) ------ Large Storage Unit Targeting Computer > --- WEAPON (2) ------- Light Assault Rifle Heavy Assault Rifle > --- INVENTORY (15) --- Light Ion Engine Light Nuclear Core Heat Sink Improved Heat Sink Medium Storage Unit Structural Scanner Light Armor Plating Light Armor Plating Small Laser Light Assault Rifle Light Assault Rifle Grenade Launcher Hammer Peak State ------------ > --- POWER ------------ Improved Ion Engine > --- PROPULSION ------- Light Treads Light Treads > --- UTILITY ---------- Large Storage Unit Targeting Computer Light Armor Plating > --- WEAPON ----------- Light Assault Rifle Heavy Assault Rifle > --- INVENTORY -------- Light Ion Engine Light Nuclear Core Heat Sink Improved Heat Sink Medium Storage Unit Structural Scanner Light Armor Plating Light Armor Plating Small Laser Light Assault Rifle Light Assault Rifle Grenade Launcher Hammer [Rating: 11] Favorites ----------- Power Ion Engine Engine Ion Engine Propulsion Light Treads Treads Light Treads Utility Light Armor Plating Storage Large Storage Unit Processor Targeting Computer Protection Light Armor Plating Weapon Light Assault Rifle Ballistic Gun Light Assault Rifle Impact Weapon Hammer Build | -11 -10 -10 -9 ------- Run | Yrd Mat Min Mat Slots Evolved 2 | . . . 2 Power . | . . . . Propulsion 1 | . . . 1 Utility 1 | . . . 1 Weapon . | . . . . Parts Attached 17 | 6 3 . 8 Power 2 | 1 . . 1 Engine 2 | 1 . . 1 Core . | . . . . Reactor . | . . . . Propulsion 4 | 2 . . 2 Treads 4 | 2 . . 2 Leg . | . . . . Wheel . | . . . . Hover . | . . . . Flight . | . . . . Utility 5 | 1 3 . 1 Device . | . . . . Storage 2 | 1 1 . . Processor 2 | . 1 . 1 Hackware . | . . . . Protection 1 | . 1 . . Artifact . | . . . . Weapon 6 | 2 . . 4 Energy Gun . | . . . . Energy Cannon . | . . . . Ballistic Gun 5 | 2 . . 3 Ballistic Cannon . | . . . . Launcher . | . . . . Special Weapon . | . . . . Impact Weapon 1 | . . . 1 Slashing Weapon . | . . . . Piercing Weapon . | . . . . Special Melee Weapon . | . . . . Unidentified Prototypes . | . . . . Parts Lost 6 | . . . 6 Power 1 | . . . 1 Propulsion 3 | . . . 3 Utility 1 | . . . 1 Weapon 1 | . . . 1 Highest Loss Streak 4 | . . . 4 To Critical Strikes . | . . . . Average Slot Usage (%) 95 | . 97 100 90 Engine 12 | . 14 14 9 Treads 27 | . 28 28 26 Storage 13 | . 14 14 11 Processor 3 | . 1 . 11 Protection 10 | . 10 14 10 Ballistic Gun 26 | . 28 28 21 Peak Build Rating 11 | 6 8 8 11 Average Rating 7 | 4 7 8 10 On Entrance 5 | . 6 8 8 Naked Turns . | . . . . Heaviest Build 34 | 13 31 31 34 Greatest Support 60 | 40 40 40 60 Greatest Overweight (x) 1 | . . . 1 Average Overweight (x) . | . . . . Largest Inventory Capacity 15 | 8 15 15 15 Average Capacity 12 | 6 12 15 15 Most Carried 15 | 1 15 15 14 Average Carried 9 | . 8 15 12 Final Capacity 15 | 8 15 15 15 Final Carried 15 | 1 15 15 13 Class Distribution -------------------- 100% | Mutant Dominant Class ---------------- Mutant | -10/Materials Mutant | -10/Mines Mutant | -9/Materials Resources | -11 -10 -10 -9 ----------- Run | Yrd Mat Min Mat Matter Collected 663 | 213 298 . 152 Remotely . | . . . . Salvage Created 671 | . 369 . 302 Parts 54 | . 35 . 19 Haulers Intercepted 2 | . 2 . . Recyclers Shooed 1 | . . . 1 Parts Field Recycled . | . . . . Retrieved Matter . | . . . . Parts Self-Destructed . | . . . . Prevented . | . . . . Kills | -11 -10 -10 -9 ------- Run | Yrd Mat Min Mat Combat Hostiles Destroyed 14 | . 8 . 6 Guns 13 | . 8 . 5 Classes Destroyed 8 | . 5 . 3 Worker 1 | . . . 1 Hauler 2 | . 2 . . Operator 1 | . 1 . . Watcher 6 | . 3 . 3 Swarmer 6 | . 5 . 1 Grunt 6 | . 3 . 3 Duelist 1 | . . . 1 Sentry 1 | . . . 1 Best Kill Streak 3 | . 3 . 3 Combat Bots Only 3 | . 3 . 3 Max Kills in Single Turn 1 | . 1 . 1 Gunslinging . | . . . . Exploded . | . . . . Melee . | . . . . Uniques/NPCs Destroyed . | . . . . Combat | -11 -10 -10 -9 -------- Run | Yrd Mat Min Mat Hostile Shots Fired 105 | . 32 . 73 Missed 24 | . 11 . 13 Damage Taken 1036 | . 209 . 827 Core 109 | . 17 . 92 Absorbed by Shields . | . . . . Core Remaining (%) 96 | 100 . 93 . Volleys Fired 83 | 1 44 . 38 Largest 2 | 2 2 . 2 Hottest 43 | 40 40 . 43 Shots Fired 160 | 2 88 . 70 Gun 160 | 2 88 . 70 Cannon . | . . . . Launcher . | . . . . Special . | . . . . Kinetic 160 | 2 88 . 70 Thermal . | . . . . Explosive . | . . . . Electromagnetic . | . . . . Robot Hit Streak 14 | . 10 . 14 Robot Miss Streak 4 | . 3 . 4 Penetration Max . | . . . . Secondary Targets 1 | . 1 . . Max Gunslinging Chain 1 | . 1 . . Shots Hit Robots 98 | . 57 . 41 Core Hits 39 | . 22 . 17 Critical Kills 1 | . 1 . . Critical Parts Destroyed 1 | . . . 1 Critical Strikes 2 | . 1 . 1 Destroy 1 | . 1 . . Smash 1 | . . . 1 Melee Attacks 1 | . . . 1 Impact 1 | . . . 1 Slashing . | . . . . Piercing . | . . . . Sneak Attacks . | . . . . Combat Hostiles . | . . . . Follow-up Attacks . | . . . . Damage Inflicted 1072 | . 597 . 475 Guns 1022 | . 585 . 437 Cannons . | . . . . Explosions . | . . . . Melee 28 | . . . 28 Ramming 22 | . 12 . 10 Kinetic 1022 | . 585 . 437 Thermal . | . . . . Explosive . | . . . . Electromagnetic . | . . . . Impact 28 | . . . 28 Slashing . | . . . . Piercing . | . . . . Highest Corruption 6 | . 6 6 . Average Corruption 5 | . 5 6 . Corruption Purged . | . . . . Corruption Blocked . | . . . . Effects 22 | . 22 . . Message Errors 4 | . 4 . . Matter Fused 6 | . 6 . . Heat Flow Errors 4 | . 4 . . Energy Discharges 3 | . 3 . . Data Loss (minor) 1 | . 1 . . Data Loss (major) 1 | . 1 . . Misfires 1 | . 1 . . Alerts 1 | . 1 . . Weapon Failures 1 | . 1 . . Overload Shots . | . . . . Overflow Damage 28 | . . . 28 Projectiles . | . . . . Explosions . | . . . . Melee 28 | . . . 28 Knockbacks 1 | . 1 . . Impact 1 | . 1 . . Kinetic . | . . . . Secondary . | . . . . Self-Inflicted Damage . | . . . . Shots . | . . . . Rammed 3 | . 2 . 1 Targets Rammed 4 | . 2 . 2 Kicked . | . . . . Crushed 1 | . . . 1 Highest Temperature 276 | . 276 . 15 Average Temperature 52 | . 74 . 4 Received Heat Transfer 249 | . 60 . 189 Siege Activations . | . . . . Robots Corrupted 1 | . . . 1 Combat Hostiles 1 | . . . 1 Parts Fried 1 | . . . 1 Impact Corruptions 1 | . . . 1 Robots Melted . | . . . . Combat Hostiles . | . . . . Parts Melted . | . . . . Heat Transferred . | . . . . Parts Sabotaged . | . . . . Parts Stolen . | . . . . Parts Stripped . | . . . . Power Chain Reactions . | . . . . Alert | -11 -10 -10 -9 ------- Run | Yrd Mat Min Mat Peak Influence 183 | . 156 31 183 Initial 31 | . . 31 11 Average 57 | . 54 31 77 Maximum Alert Level . | . . . . Low Security (%) 100 | 100 100 100 100 Level 1 . | . . . . Level 2 . | . . . . Level 3 . | . . . . Level 4 . | . . . . Level 5 . | . . . . High Security . | . . . . Max Security . | . . . . Squads Dispatched 1 | . . . 1 Investigation 1 | . . . 1 Extermination . | . . . . Reinforcement . | . . . . Assault . | . . . . Garrison . | . . . . Intercept . | . . . . Searches Triggered . | . . . . Construction Impeded . | . . . . Haulers Reinforced . | . . . . Active Scanning Responses . | . . . . Cargo Convoy Interrupts . | . . . . Stealth | -11 -10 -10 -9 --------- Run | Yrd Mat Min Mat Distress Signals 3 | . . . 3 Communications Jammed . | . . . . Distress Signals . | . . . . Times Spotted 36 | . 17 . 19 Peak Tracking Total 6 | . 3 . 6 Tactical Retreats 3 | . 2 . 1 Traps | -11 -10 -10 -9 ------- Run | Yrd Mat Min Mat Traps Triggered 4 | . 4 . . Indirectly . | . . . . Trap Hack Attempts . | . . . . Triggered . | . . . . Disarmed . | . . . . Reprogrammed . | . . . . Reused . | . . . . Traps Extracted . | . . . . Installed . | . . . . Triggered . | . . . . Machines | -11 -10 -10 -9 ---------- Run | Yrd Mat Min Mat Machines Disabled . | . . . . Max in Single Turn . | . . . . Machines Repaired . | . . . . Machines Dismantled . | . . . . Machines Sabotaged . | . . . . Overloaded Fab Kills . | . . . . Hacking | -11 -10 -10 -9 --------- Run | Yrd Mat Min Mat Machines Accessed 8 | . 6 . 2 Terminals 7 | . 5 . 2 Fabricators . | . . . . Repair Stations . | . . . . Recycling Units 1 | . 1 . . Scanalyzers . | . . . . Garrison Access . | . . . . Total Hacks 19 | . 13 . 6 Successful 9 | . 7 . 2 Failed 10 | . 6 . 4 Catastrophic . | . . . . Database Lockouts . | . . . . Manual 15 | . 10 . 5 Terminals 18 | . 12 . 6 Fabricators . | . . . . Repair Stations . | . . . . Recycling Units 1 | . 1 . . Scanalyzers . | . . . . Garrison Access . | . . . . Terminal Hacks 3 | . 2 . 1 Robot Analysis 2 | . 1 . 1 Locate Traps 1 | . 1 . . Fabricator Hacks . | . . . . Repair Station Hacks . | . . . . Recycling Unit Hacks 1 | . 1 . . Report Inventory 1 | . 1 . . Scanalyzer . | . . . . Garrison Access Hacks . | . . . . Unauthorized Hacks 5 | . 4 . 1 Terminals 5 | . 4 . 1 Assimilate 1 | . 1 . . Botnet 4 | . 3 . 1 Fabricators . | . . . . Repair Stations . | . . . . Recycling Units . | . . . . Scanalyzers . | . . . . Garrison Access . | . . . . Data Cores Recovered 1 | . 1 . . Used 1 | . 1 . . Hacking Detections 7 | . 5 . 2 Full Trace Events 2 | . 1 . 1 Feedback Events . | . . . . Feedback Blocked . | . . . . Robot Schematics Acquired . | . . . . Robots Built . | . . . . Authchips . | . . . . Time . | . . . . Total Robot Build Rating . | . . . . Part Schematics Acquired . | . . . . Parts Built . | . . . . Authchips . | . . . . Time . | . . . . Total Part Build Rating . | . . . . Parts Repaired . | . . . . Time . | . . . . Parts Recycled . | . . . . Recycled Matter . | . . . . Retrieved Matter . | . . . . Retrieved Components . | . . . . Parts Scanalyzed . | . . . . Part Schematics Acquired . | . . . . Parts Damaged . | . . . . Bothacking | -11 -10 -10 -9 ------------ Run | Yrd Mat Min Mat Used RIF Installer . | . . . . Robots Hacked . | . . . . Non-combat . | . . . . Combat . | . . . . Robot Hacks Applied . | . . . . Relay Couplers Released . | . . . . Fabnet Peak Effective % . | . . . . Robots Rewired . | . . . . Allies Hacked . | . . . . Hacks Repelled . | . . . . Allies | -11 -10 -10 -9 -------- Run | Yrd Mat Min Mat Total Allies . | . . . . Largest Group . | . . . . Highest-Rated Group . | . . . . Highest-Rated Ally . | . . . . Total Orders . | . . . . Ally Attacks . | . . . . Total Damage . | . . . . Kills . | . . . . Allies Corrupted . | . . . . Allies Melted . | . . . . Intel | -11 -10 -10 -9 ------- Run | Yrd Mat Min Mat Robot Analysis Total 2 | . 1 . 1 Derelict Logs Recovered . | . . . . Drone Launches . | . . . . Drone Recoveries . | . . . . Exploration | -11 -10 -10 -9 ------------- Run | Yrd Mat Min Mat Turns Passed 1640 | 62 1133 42 403 Spaces Moved 820 | 33 593 25 169 Core 3 | 3 . . . Treads 817 | 30 593 25 169 Legs . | . . . . Wheels . | . . . . Hover . | . . . . Flight . | . . . . Fastest Speed 50 | 50 160 160 160 Average Speed 160 | 150 160 160 162 Slowest Speed 240 | 160 160 160 240 Overloaded Moves . | . . . . Propulsion Burnouts . | . . . . Robots Hopped . | . . . . Cave-ins Triggered . | . . . . Exploration Rate (%) 31 | 3 90 9 24 Regions Visited 3 Branch Regions 1 Pre-discovered Areas 1 | . . 1 . Known Exits Taken 1 | . 1 . . Unknown Exits Taken 2 | 1 . 1 . Scrap Searched . | . . . . Spaces Dug . | . . . . Terrain Destroyed . | . . . . Melee . | . . . . Projectile . | . . . . AOE . | . . . . Terrain Rammed . | . . . . Walls Destroyed . | . . . . Machines Disabled . | . . . . Actions | -11 -10 -10 -9 --------- Run | Yrd Mat Min Mat Total 995 | 41 697 27 230 Wait 51 | . 36 3 12 Move 817 | 32 592 24 169 Hop . | . . . . Pick Up 19 | 2 17 . . Fast Attach 8 | 5 1 . 2 Attach 4 | 1 . . 3 Detach . | . . . . Swap 5 | . 2 . 3 Drop 3 | . 3 . . Fire 83 | 1 44 . 38 Melee 1 | . . . 1 Ram . | . . . . Kick . | . . . . Crush 4 | . 2 . 2 Escape Stasis . | . . . . Rewire . | . . . . Trap . | . . . . Miscellaneous . | . . . . Route ------- -11/Scrapyard -10/Materials (discovered 5 exits: *Mat x3 / *Min x2) -10/Mines -9/Materials (discovered 1 exit: [*Min]) History --------- Turn | Location | Event 35 | -11/Scrapyard | Discovered new exit (range 15) 63 | -11/Scrapyard | Entered Materials 259 | -10/Materials | Discovered new exit (range 12) 309 | -10/Materials | Discovered new exit (range 13) 312 | -10/Materials | Build established: Mutant 351 | -10/Materials | Identified exit to Mines 649 | -10/Materials | Discovered new exit (range 3) 800 | -10/Materials | Discovered exit to Mines (range 14) 910 | -10/Materials | Discovered new exit (range 4) 1196 | -10/Materials | Entered Mines 1197 | -10/Mines | Learned location of Storage (-9) 1207 | -10/Mines | Discovered new exit (range 8) 1238 | -10/Mines | Entered Materials 1238 | -9/Materials | Evolved 2 slots: Propulsion x1, Utility x1 1471 | -9/Materials | Lost 4 parts (1p2n1w) 1595 | -9/Materials | Discovered new exit (range 8) 1641 | -9/Materials | Self-destructed Last Messages --------------- Acquired Imp. Ion Engine. W-16 Scout destroyed. M-13 Machinist repairs A-02 Transporter. Acquired 22 matter. R-06 Scavenger collects Sensor Array. Acquired 4 matter. Slammed into R-06 Scavenger. U-05 Engineer builds a Door. K-01 Serf cleans the Matter Filter. EXIT=FOUND W-16 Scout sends out distress signal. W-16 Scout destroyed. Lgt. Treads destroyed. G-34 Mercenary destroyed. C-30 ARC bursts open, deploying its payload. S-10 Pest unfolds itself. Lgt. Armor Plating destroyed. R-06 Scavenger collects Sensor Array. S-10 Pest destroyed. R-06 Scavenger collects Aluminum Leg. Map ----- +----------------------------------------------------+ | #??#!! #??????????# #?? ?? #???????? | | #######??#!! #??????????# #? ?? #???????? | | ?????????##### ############ #? ?= ????????? | | ?????????????# # + #? ? ?#???????? | | ?????????????# # =# ##+##+##+#???????? | | ?????????????# += # #???????? | | ?????????????# # # % #???????? | | ?????????????# # # #???????? | | ?????????????# # # #???????? | | ?????????????# # # #???????? | | ?????????????# # # % #???????? | | ?????????????# ########### #####???? | | ?????????????# #?????????# #?? | | ?????????????# #?????????# #?? | | ?????????????# ###########% #?? | | ?????????????# %= #?? | | ?????????######+##################### ######## #?? | | ?????????# #??????????????? ?????????? | | ?????????# """"""" #??????????????? #???????? | | ?????????# """"""" #??????##???????? #???????? | | ?????????# """"""" #??#### ###??????? #???????? | | ?????????# """"""" #??# #????????##???????? | | ?????????# """"""" #??# """ #?????????????????? | | ?????????# #??# """ #?????????????????? | | ?????????###########/#??# """ #?????????????????? | | ?????????# ### ####@ s #?????????????????? | | ????? %gs""" #?????????????????? | | ????? < ##%""" #?????????????????? | | ????? ##s""" #?????????????????? | | ?????? #" "# ##r #?????????????????? | | ?????????#" !"| "# ## "" #?????????????????? | | ?????????#""""""?# ## T" #?????????????????? | | ?????????#?####??# ## "" #?????????????????? | | ????????????????? ## % #?????????????????? | | ???????????????? #######+#?????????????????? | | ??????????????? ?????? ?????????????????? | | ?????????????? ??????? ????????????????? | | ????????????? ???????? ????????????????? | | ???????????? ##????????#???????????????? | | ?????????????###### #?????????????????????????? | | ??????????????????# #?????????????????????????? | | ??????????????????/ ??????????????????????????? | | ???????????????????? ??????????????????????????? | | ?????????????????????????????????????????????????? | | ?????????????????????????????????????????????????? | | ?????????????????????????????????????????????????? | | ?????????????????????????????????????????????????? | | ?????????????????????????????????????????????????? | | ?????????????????????????????????????????????????? | | ?????????????????????????????????????????????????? | +----------------------------------------------------+ Best States ------------- Heat Dissipation 28 Energy Generation 12 Energy Capacity 265 Matter Stores 300 Matter Capacity 300 Sight Range 16 Terrain Scan Density 10 Armor Coverage 150 Evasion (%) 40 Targeting Accuracy 5 Recoil Reduction 3 Item Schematics ----------------- None Robot Schematics ------------------ None Fabricated ------------ Nothing Alien Tech Used ----------------- None Achievements -------------- Power Corrupts Challenges ------------ None Game ------ Seed DecoyMediumDatajack Manual? 0 Play Time 00:20:48 Cumulative 14.1 hours Start 2024.08.26 @ 19:54:25 End 2024.08.26 @ 20:20:35 Sessions 1 Manual Loads 0 Difficulty Rogue Special Mode None Game No. 14 Rogue 14 Adventurer 0 Explorer 0 Win Type - Total 0 Types 0/0/0/0/0/0/0/0/0 Lore% 4 Gallery% 13 Achievement% 20 Wizard Run 0 Options --------- Layout 1 ASCII 0 Keyboard 0 Movement Mouse Keybinds 0 Fullscreen 1 Font 24/Smallcaps Map View 50x35 Zoom Use 0% Tactical HUD 0 Map Filters NONE Filters NONE Steam 1 RUN: b757f60a-6f71-4123-aea1-5cfaf13e5618